[Event "7th Sharjah Challengers 2024"]
[Site "Sharjah"]
[Date "2024.05.14"]
[Round "1.2"]
[White "Borisova, Ekaterina"]
[Black "Delgado Ramirez, Neuris"]
[Result "0-1"]
[ECO "A60"]
[WhiteElo "2185"]
[BlackElo "2489"]
[Annotator "RC"]
[PlyCount "104"]
[EventDate "2024.05.13"]
[EventType "swiss"]
[EventCountry "UAE"]
[SourceTitle "playchess.com"]
[Source "ChessBase"]
[SourceQuality "1"]
[TimeControl "5400+30"]

1. d4 {[%emt 0:00:03]} Nf6 {[%emt 0:00:07]} 2. c4 {[%emt 0:00:04]} e6 {[%emt 0:00:06]} 3. g3 {[%emt 0:00:04]} c5 {[%emt 0:00:06]} 4. d5 {[%emt 0:00:04]} exd5 {[%emt 0:01:00]} 5. cxd5 {[%emt 0:00:04]} b5 {[%emt 0:00:30]} 6. e4 {[%emt 0:00:06]} Bd6 {[%emt 0:15:36]} 7. Nd2 {[%emt 0:03:57]} O-O {[%emt 0:03:04]} 8. Bxb5 {[%emt 0:05:26]} Qa5 {[%emt 0:04:33]} 9. Bd3 {[%emt 0:09:12]} Ba6 {[%emt 0:02:59]} 10. Qc2 {[%emt 0:16:35]} Re8 {[%emt 0:02:02]} 11. Kf1 {[%emt 0:00:57]} Nxe4 {[%emt 0:04:32]} 12. Nc4 {[%emt 0:10:10]} Bxc4 {[%emt 0:02:06]} 13. Qxc4 {[%emt 0:00:10]} Qb4 {[%emt 0:02:05]} 14. Qxb4 {[%emt 0:07:58]} cxb4 {[%emt 0:00:09]} 15. Be3 {[%emt 0:01:24]} Nf6 {[%emt 0:04:34]} 16. Rd1 {[%emt 0:06:08]} a5 {[%emt 0:06:38]} 17. Nf3 {[%emt 0:03:27]} Na6 {[%emt 0:00:14]} 18. Kg2 {[%emt 0:05:46]} Nc5 {[%emt 0:00:20]} 19. Bd4 {[%emt 0:04:33]} Nxd3 {[%emt 0:02:28]} 20. Rxd3 {[%emt 0:01:08]} Ne4 {[%emt 0:01:07]} 21. Re1 {[%emt 0:02:32]} f5 {[%emt 0:05:04]} 22. Be3 {[%emt 0:06:58]} Kf7 {[%emt 0:02:32]} 23. Nd4 {[%emt 0:00:26]} g6 {[%emt 0:01:21]} 24. Nb5 {[%emt 0:02:45]} Be5 {[%emt 0:04:14]} 25. f3 {[%emt 0:02:18]} Rab8 {[%emt 0:00:37]} 26. fxe4 {[%emt 0:07:48]} fxe4 {[%emt 0:02:04]} 27. Rd4 {[%emt 0:01:30]} Rxb5 {[%emt 0:00:07]} 28. Rxe4 {[%emt 0:00:03]} Rxd5 {[%emt 0:01:21]} 29. Bf4 {[%emt 0:00:02]} d6 {[%emt 0:00:08]} 30. Rc1 {[%emt 0:00:41]} Re7 {[%emt 0:02:31]} 31. Rc2 {[%emt 0:02:11]} Bf6 {[%emt 0:04:05]} 32. Rec4 {[%emt 0:00:22]} g5 {[%emt 0:03:08]} 33. Bc1 {[%emt 0:00:02]} Rd1 {[%emt 0:00:07]} 34. h4 {[%emt 0:01:14]} h6 {[%emt 0:04:00]} 35. Rf2 {[%emt 0:00:30]} Kg6 {[%emt 0:01:30]} 36. h5+ {[%emt 0:00:29]} Kg7 {[%emt 0:00:04]} 37. a3 {[%emt 0:00:40]} Bd4 {[%emt 0:00:24]} 38. Rf1 {[%emt 0:00:42]} Rxf1 {[%emt 0:12:01]} 39. Kxf1 {[%emt 0:00:02]} Bc5 {[%emt 0:00:34]} 40. axb4 {[%emt 0:00:21]} Bxb4 {[%emt 0:00:25]} 41. b3 {[%emt 0:01:16]} Kf7 {[%emt 0:01:08]} 42. Rc8 {[%emt 0:00:26]} Ke6 {[%emt 0:00:30]} 43. Rh8 {[%emt 0:00:41]} Kf5 {[%emt 0:00:11]} 44. Kf2 {[%emt 0:00:32]} Kg4 {[%emt 0:01:07]} 45. Rxh6 {[%emt 0:00:23]} Rc7 {[%emt 0:01:01]} 46. Be3 {[%emt 0:00:21]} Rc2+ {[%emt 0:00:53]} 47. Kf1 {[%emt 0:00:17]} Rb2 {[%emt 0:01:07]} 48. Rg6 {[%emt 0:01:04]} Kf3 {[%emt 0:00:41]} 49. Rf6+ {[%emt 0:00:25]} Kxe3 {[%emt 0:00:08]} 50. h6 {[%emt 0:00:02]} Bc3 {[%emt 0:00:48]} 51. Rxd6 {[%emt 0:00:13]} Rf2+ {[%emt 0:01:05]} 52. Kg1 {[%emt 0:00:02]} Rf6 {[%emt 0:00:07]} 0-1

[Event "7th Sharjah Challengers 2024"]
[Site "Sharjah"]
[Date "2024.05.14"]
[Round "1.3"]
[White "Burmakin, Vladimir"]
[Black "Kazarian, Anna-Maja"]
[Result "1-0"]
[ECO "D46"]
[WhiteElo "2483"]
[BlackElo "2182"]
[Annotator "RC"]
[PlyCount "77"]
[EventDate "2024.05.13"]
[EventType "swiss"]
[EventCountry "UAE"]
[SourceTitle "playchess.com"]
[Source "ChessBase"]
[SourceQuality "1"]
[TimeControl "5400+30"]

1. d4 {[%emt 0:00:03]} Nf6 {[%emt 0:00:03]} 2. Nf3 {[%emt 0:00:19]} d5 {[%emt 0:00:05]} 3. c4 {[%emt 0:00:20]} c6 {[%emt 0:00:04]} 4. Nc3 {[%emt 0:00:19]} e6 {[%emt 0:00:57]} 5. e3 {[%emt 0:00:16]} Nbd7 {[%emt 0:00:41]} 6. Bd3 {[%emt 0:00:47]} Bd6 {[%emt 0:00:59]} 7. e4 {[%emt 0:01:00]} dxe4 {[%emt 0:01:51]} 8. Nxe4 {[%emt 0:00:28]} Nxe4 {[%emt 0:00:05]} 9. Bxe4 {[%emt 0:00:06]} Nf6 {[%emt 0:11:23]} 10. Bc2 {[%emt 0:00:38]} c5 {[%emt 0:00:29]} 11. O-O {[%emt 0:06:59]} h6 {[%emt 0:03:42]} 12. Ba4+ {[%emt 0:19:42]} Bd7 {[%emt 0:17:33]} 13. dxc5 {[%emt 0:03:11]} Bxc5 {[%emt 0:01:59]} 14. Ne5 {[%emt 0:00:09]} Bxa4 {[%emt 0:06:36]} 15. Qxa4+ {[%emt 0:00:10]} Ke7 {[%emt 0:00:13]} 16. Rd1 {[%emt 0:07:58]} Qe8 {[%emt 0:13:26]} 17. Qb3 {[%emt 0:03:40]} Qc8 {[%emt 0:04:39]} 18. Bf4 {[%emt 0:03:37]} b6 {[%emt 0:11:09]} 19. Qf3 {[%emt 0:12:03]} Kf8 {[%emt 0:10:34]} 20. Rd3 {[%emt 0:01:57]} Be7 {[%emt 0:01:51]} 21. Rad1 {[%emt 0:01:29]} g5 {[%emt 0:03:24]} 22. Be3 {[%emt 0:03:27]} Kg7 {[%emt 0:00:35]} 23. Bd4 {[%emt 0:02:21]} Qc7 {[%emt 0:06:43]} 24. g3 {[%emt 0:11:48]} Rad8 {[%emt 0:00:58]} 25. Ng4 {[%emt 0:01:28]} Rxd4 {[%emt 0:00:15]} 26. Rxd4 {[%emt 0:00:05]} Nxg4 {[%emt 0:00:32]} 27. Qxg4 {[%emt 0:00:19]} Bf6 {[%emt 0:00:49]} 28. Rd7 {[%emt 0:00:15]} Qc6 {[%emt 0:00:28]} 29. Qh5 {[%emt 0:01:04]} Rf8 {[%emt 0:00:17]} 30. b3 {[%emt 0:00:18]} a5 {[%emt 0:00:22]} 31. Qe2 {[%emt 0:00:28]} Kg8 {[%emt 0:00:47]} 32. R1d6 {[%emt 0:02:31]} Qc5 {[%emt 0:00:13]} 33. Qf3 {[%emt 0:03:35]} Bg7 {[%emt 0:02:19]} 34. Rc6 {[%emt 0:00:22]} Qb4 {[%emt 0:00:48]} 35. Rcc7 {[%emt 0:01:40]} Be5 {[%emt 0:00:20]} 36. Rb7 {[%emt 0:00:07]} Qe1+ {[%emt 0:00:46]} 37. Kg2 {[%emt 0:00:05]} f5 {[%emt 0:00:10]} 38. Qe3 {[%emt 0:00:07]} Qa1 {[%emt 0:00:28]} 39. Qxb6 {[%emt 0:00:35]} 1-0

[Event "7th Sharjah Challengers 2024"]
[Site "Sharjah"]
[Date "2024.05.14"]
[Round "1.4"]
[White "Ajay Santhosh Parvathareddy"]
[Black "Rios Gomez, Cristhian Camilo"]
[Result "1/2-1/2"]
[ECO "B33"]
[WhiteElo "2177"]
[BlackElo "2472"]
[Annotator "TA"]
[PlyCount "64"]
[EventDate "2024.05.13"]
[EventType "swiss"]
[EventCountry "UAE"]
[SourceTitle "playchess.com"]
[Source "ChessBase"]
[SourceQuality "1"]
[TimeControl "5400+30"]

{[%evp 19,64,0,0,8,17,-18,25,24,17,20,8,20,32,-33,-47,-37,-33,-41,0,0,0,0,0,0,0,0,0,0,0,0,0,0,0,0,2,0,0,0,0,0,0,0,0,0,0,0,0]} 1. e4 {[%emt 0:00:01]} c5 {[%emt 0:00:20]} 2. Nf3 {[%emt 0:00:06]} Nc6 {[%emt 0:00:28]} 3. d4 {[%emt 0:00:05]} cxd4 {[%emt 0:00:18]} 4. Nxd4 {[%emt 0:00:07]} Nf6 {[%emt 0:01:10]} 5. Nc3 {[%emt 0:00:09]} e5 {[%emt 0:00:43]} 6. Ndb5 {[%emt 0:00:04]} d6 {[%emt 0:00:09]} 7. Nd5 {[%emt 0:00:05]} Nxd5 {[%emt 0:00:18]} 8. exd5 {[%emt 0:00:06]} Nb8 {[%emt 0:00:07]} 9. a4 {[%emt 0:00:04]} Be7 {[%emt 0:00:05]} 10. Be2 {[%emt 0:00:32]} O-O {[%emt 0:00:12]} 11. O-O {[%emt 0:00:07]} Nd7 {[%emt 0:00:02]} 12. b4 {[%emt 0:00:00]} f5 {[%emt 0:00:33][%cal Bf7f5,Bf5f4][%mdl 32]} 13. a5 {[%emt 0:00:05] White has an edge.} a6 {[%emt 0:01:43]} 14. Na3 {[%emt 0:00:26]} e4 {[%emt 0:03:21]} 15. Nc4 {[%emt 0:03:13]} f4 {[%emt 0:07:04]} 16. Bg4 {[%emt 0:04:33]} (16. Ra3 $14) 16... Ne5 $15 {[%emt 0:05:07]} 17. Nxe5 {[%emt 0:16:40]} dxe5 {[%emt 0:00:12]} 18. Bb2 {[%emt 0:00:27]} f3 {[%emt 0:10:44]} 19. gxf3 {[%emt 0:00:37] The position is equal.} exf3 {[%emt 0:02:15]} 20. Bxf3 {[%emt 0:00:45]} Bd6 {[%emt 0:00:49] [#] Threatens to win with ...Qg5+.} 21. Be4 {[%emt 0:16:13]} Qh4 {[%emt 0:02:20] Dodges Qh5} (21... Bxb4 $2 22. Qh5 (22. Bxe5 Qg5+ 23. Bg3 Bh3 $16) 22... h6 23. Bxe5 (23. Qxe5 Qg5+ 24. Qxg5 hxg5 $18) 23... Qg5+ 24. Qxg5 hxg5 25. Bg2 $18) 22. f3 {[%emt 0:02:26]} Bh3 {[%emt 0:00:00]} (22... Bxb4 $6 23. d6 (23. Bxe5 Bh3 $16) 23... Be6 24. Bxe5 (24. Bxb7 Rab8 $15) 24... Qg5+ 25. Bg3 $16) 23. Rf2 {[%emt 0:07:45]} Bxb4 {[%emt 0:02:02] ...Bc5 is the strong threat.} 24. d6 {[%emt 0:07:38][%cal Oc2c3]} Kh8 {[%emt 0:00:14]} 25. Qd5 {[%emt 0:00:54] Dodges Bc5} Rad8 {[%emt 0:24:38]} 26. Bxe5 {[%emt 0:08:14][%cal Od5d4] [#] Hoping for Qd4!} (26. Qxe5 Qh6 (26... Bxd6 27. Qxg7#) 27. Kh1 Bxd6 $15 (27... Qxd6 28. Qxg7#)) 26... Qh6 {[%emt 0:02:39]} 27. Rd1 {[%emt 0:03:39][%cal Oc2c4] aiming for c4! Chess con chili.} (27. Qxb7 Qg5+ (27... Bxd6 28. Bxd6 Qf6 29. Re1 $17) 28. Bg3 Bxd6 $15 (28... Bxa5 $2 29. Qe7 $16)) 27... Bxd6 {[%emt 0:02:42]} 28. Bxd6 {[%emt 0:02:39]} Rf6 {[%emt 0:00:09]} 29. Rfd2 {[%emt 0:07:15]} Rfxd6 {[%emt 0:00:59]} 30. Qxd6 {[%emt 0:00:42]} Rxd6 {[%emt 0:00:07]} 31. Rxd6 {[%emt 0:00:04][%cal Rd6d8]} g6 {[%emt 0:00:37]} 32. Kf2 {[%emt 0:00:26]} (32. Bxb7 Qg5+ 33. Kf2 Qg2+ 34. Ke3 Qxc2 $15) 32... Bf5 {[%emt 0:34:23] Weighted Error Value: White=0.06 (flawless) /Black=0.04 (flawless) .  Mistake:       	White=1     	---        Inaccurate:     	White=1     	Black=2      OK:         	White=10    	Black=11     Best:        	White=1     	Black=1} 1/2-1/2

[Event "7th Sharjah Challengers 2024"]
[Site "Sharjah"]
[Date "2024.05.14"]
[Round "1.5"]
[White "Movahed, Sina"]
[Black "Sultan, Ibrahim"]
[Result "1-0"]
[ECO "B12"]
[WhiteElo "2464"]
[BlackElo "2173"]
[Annotator "TA"]
[PlyCount "30"]
[EventDate "2024.05.13"]
[EventType "swiss"]
[EventCountry "UAE"]
[SourceTitle "playchess.com"]
[Source "ChessBase"]
[SourceQuality "1"]
[TimeControl "5400+30"]

{[%evp 9,30,10,50,33,64,67,83,84,97,91,91,86,201,150,326,229,453,447,451,446,405,367,918]} 1. e4 {[%emt 0:00:07]} c6 {[%emt 0:00:26]} 2. d4 {[%emt 0:00:19]} d5 {[%emt 0:00:06]} 3. e5 {[%emt 0:00:08]} Bf5 {[%emt 0:00:06]} 4. Be3 {[%emt 0:01:10]} e6 {[%emt 0:03:54]} 5. Nd2 {[%emt 0:01:20]} c5 {[%emt 0:01:34]} 6. Ngf3 {[%emt 0:03:58]} cxd4 {[%emt 0:04:44]} 7. Nxd4 {[%emt 0:00:57]} Ne7 {[%emt 0:00:06]} 8. Bb5+ {[%emt 0:06:46] White is better.} Nbc6 {[%emt 0:00:06]} 9. c4 {[%emt 0:00:09] White has more active pieces.} a6 {[%emt 0:03:49] [#]} 10. Ba4 {[%emt 0:01:37]} Qa5 {[%emt 0:26:04]} (10... Qd7 $16) 11. Qb3 {[%emt 0:00:54]} Rc8 $2 {[%emt 0:05:24]} (11... O-O-O $16 {was necessary.}) 12. cxd5 {[%emt 0:14:39]} exd5 $2 {[%emt 0:01:03] [#]} (12... b5 13. Bxb5 (13. Nxc6 Nxc6 14. dxc6 Rxc6 $16) 13... axb5) 13. Nxf5 $1 $18 {[%emt 0:01:19]} Nxf5 {[%emt 0:00:33]} 14. Qxb7 {[%emt 0:00:06]} Nfe7 {[%emt 0:01:25]} 15. Qb3 {[%emt 0:01:15] Bb6 would now be deadly.} g6 $2 {[%emt 0:00:31] White took control after the opening.   Weighted Error Value: White=0.24 (precise) /Black=0.73.  Loses game:     	---       	Black=1      Mistake:       	---       	Black=3      Inaccurate:     	---       	Black=1      OK:         	White=4     	Black=2      Strong:       	White=1     	---} (15... Ng6 16. O-O Ngxe5) 1-0

[Event "7th Sharjah Challengers 2024"]
[Site "Sharjah"]
[Date "2024.05.14"]
[Round "1.6"]
[White "Nadir, Samir"]
[Black "Nitish Belurkar"]
[Result "0-1"]
[ECO "A48"]
[WhiteElo "2158"]
[BlackElo "2451"]
[Annotator "TA"]
[PlyCount "122"]
[EventDate "2024.05.13"]
[EventType "swiss"]
[EventCountry "UAE"]
[SourceTitle "playchess.com"]
[Source "ChessBase"]
[SourceQuality "1"]
[TimeControl "5400+30"]

{[%evp 20,122,6,0,0,-27,0,0,-12,-10,0,-6,-15,-5,-10,-12,-10,-19,-25,-14,-16,-16,-22,-38,-37,-95,-95,-105,-85,-102,-104,-91,-99,-100,0,0,0,0,0,-11,-14,-5,0,-266,-275,-416,-275,-262,-263,-268,-268,-330,-318,-369,-374,-374,-352,-373,-295,-374,-365,-377,-373,-377,-360,-337,-337,-383,-384,-354,-258,-253,-241,-304,-294,-329,-324,-347,-312,-306,-263,-256,-271,-270,-268,-259,-252,-410,-337,-337,-337,-666,-678,-4133,-2313,-1044,-679,-777,-776,-731,-642,-992,-971,-835,-832]} 1. d4 {[%emt 0:00:12]} Nf6 {[%emt 0:00:08]} 2. Bf4 {[%emt 0:00:10]} g6 {[%emt 0:00:15]} 3. e3 {[%emt 0:00:28]} Bg7 {[%emt 0:00:11]} 4. Nf3 {[%emt 0:01:02]} d6 {[%emt 0:00:30]} 5. Be2 {[%emt 0:00:34]} O-O {[%emt 0:02:48]} 6. c3 {[%emt 0:02:16]} Nc6 {[%emt 0:06:54] A48: 1 d4 Nf6 2 Nf3 g6: Torre, London and Colle Systems.} 7. h3 {[%emt 0:04:25]} Nd7 {[%emt 0:00:35]} 8. O-O {[%emt 0:05:12]} e5 {[%emt 0:02:44]} 9. Bh2 {[%emt 0:00:20]} f5 {[%emt 0:01:42]} 10. Na3 {[%emt 0:05:34]} Qe7 {[%emt 0:06:55]} 11. Nb5 {[%emt 0:09:02]} Nf6 {[%emt 0:09:13]} 12. dxe5 {[%emt 0:03:16]} dxe5 {[%emt 0:02:04]} 13. Qb3+ {[%emt 0:00:23]} Kh8 {[%emt 0:02:38]} 14. Qa3 {[%emt 0:04:27]} Re8 {[%emt 0:02:32]} 15. Qxe7 {[%emt 0:04:28]} Rxe7 {[%emt 0:00:08]} 16. Rfd1 {[%emt 0:07:36]} a6 {[%emt 0:02:50]} 17. Na3 {[%emt 0:01:23]} Ne4 $146 {[%emt 0:01:49]} ({Predecessor:} 17... b5 18. Nc2 Rb8 19. Nb4 Nxb4 20. cxb4 Bb7 21. Nxe5 Ne4 22. Nd3 Bd5 23. Nc5 Nxc5 24. bxc5 {1-0 Burmakin,V (2561)-Gochelashvili,D (2419) Doroshkevich Memorial op 2012 (4)}) 18. Nd2 {[%emt 0:02:57]} Nc5 {[%emt 0:03:25]} 19. Nb3 {[%emt 0:11:29]} Na4 {[%emt 0:03:09]} 20. Rd2 {[%emt 0:04:54]} b5 {[%emt 0:07:58]} 21. Rad1 {[%emt 0:04:18]} h6 {[%emt 0:02:02]} 22. Nxb5 {[%emt 0:13:17]} (22. Bg3 $15) 22... axb5 $17 {[%emt 0:01:32]} 23. Bxb5 {[%emt 0:00:08]} Bb7 {[%emt 0:00:24]} 24. Bxa4 {[%emt 0:00:27]} Rxa4 {[%emt 0:00:08]} 25. Nc5 {[%emt 0:00:06]} Ra7 {[%emt 0:00:18]} (25... Rxa2 26. Nxb7 g5 27. Nc5 $18) 26. b4 {[%emt 0:00:29]} e4 {[%emt 0:14:28]} (26... Kg8 $17 27. a4 (27. b5 Na5 $17) 27... Kf7) 27. b5 $11 {[%emt 0:06:19]} Ne5 {[%emt 0:09:28]} 28. Rd8+ {[%emt 0:02:03]} (28. Nxb7 $2 Rxb7 29. Bxe5 Bxe5 $17) 28... Kh7 {[%emt 0:00:04]} 29. Rb8 {[%emt 0:00:40]} Ba8 {[%emt 0:03:15]} 30. Rdd8 {[%emt 0:07:35]} Nd3 {[%emt 0:01:23]} 31. Nd7 $2 {[%emt 0:00:00][%mdl 8192]} (31. Nxd3 $2 exd3 32. Rxd3 (32. Rxa8 $2 Rxa8 33. Rxd3 Rxa2 $19) 32... Rxa2 $19) (31. Rxa8 $11 Rxa8 32. Rxa8 Nxc5 33. Ra7) 31... Bd5 $19 {[%emt 0:01:17]} 32. a4 {[%emt 0:00:00]} (32. Nf8+ {might work better.} Bxf8 33. Rxd5) 32... Be6 {[%emt 0:00:39]} 33. Nf8+ {[%emt 0:00:55]} Bxf8 {[%emt 0:00:01]} 34. Rxf8 {[%emt 0:00:09]} Rxa4 {[%emt 0:00:04]} 35. Bg3 {[%emt 0:00:37]} Kg7 {[%emt 0:04:31]} (35... Ra1+ 36. Kh2 $19) 36. Rfe8 {[%emt 0:00:46]} Rxe8 {[%emt 0:10:28]} 37. Rxe8 {[%emt 0:00:12]} Kf7 {[%emt 0:00:00]} 38. Rh8 {[%emt 0:00:29]} Ra1+ {[%emt 0:00:00]} 39. Kh2 {[%emt 0:00:02]} Rb1 {[%emt 0:00:00]} 40. Rh7+ {[%emt 0:01:02]} Kg8 {[%emt 0:00:00]} 41. Re7 {[%emt 0:00:45]} Bf7 {[%emt 0:00:00]} 42. Rxc7 {[%emt 0:00:31]} Rxb5 {[%emt 0:00:00]} 43. Rc8+ {[%emt 0:00:21]} Kg7 {[%emt 0:00:00]} 44. Bd6 {[%emt 0:00:22]} Ne5 {[%emt 0:00:00]} (44... Nxf2 45. c4 Ra5 46. Bb4 $19) 45. Bf8+ {[%emt 0:00:35]} Kh7 {[%emt 0:00:00]} 46. Be7 {[%emt 0:00:28]} g5 {[%emt 0:00:00]} 47. Bf6 {[%emt 0:00:44]} Kg6 {[%emt 0:00:04]} 48. c4 {[%emt 0:00:26]} Nxc4 {[%emt 0:00:12]} 49. Bd4 {[%emt 0:00:32]} Rb7 {[%emt 0:01:13]} 50. Rc6+ {[%emt 0:00:21]} Kh7 {[%emt 0:00:02]} 51. Rf6 {[%emt 0:00:37]} Bg6 {[%emt 0:00:06]} 52. h4 {[%emt 0:00:24]} Nd2 {[%emt 0:01:19]} ({But not} 52... gxh4 53. Kh3) 53. h5 $2 {[%emt 0:00:41]} (53. Rf8 Bf7 (53... gxh4 54. Rh8#) 54. h5) 53... Bxh5 $19 {[%emt 0:00:09]} 54. Rxf5 {[%emt 0:00:15]} Rf7 {[%emt 0:00:02]} 55. Rd5 $2 {[%emt 0:00:32]} (55. Rxf7+ Bxf7 56. Bc3) 55... Rxf2 $19 {[%emt 0:00:18]} 56. Bc3 {[%emt 0:00:39]} Nf1+ {[%emt 0:00:09]} 57. Kg1 {[%emt 0:00:26]} Rf7 {[%emt 0:00:02]} 58. Bd4 {[%emt 0:00:32]} Ng3 {[%emt 0:00:09]} 59. Kh2 {[%emt 0:00:30]} Nf5 {[%emt 0:00:04]} 60. Bc5 {[%emt 0:00:27]} Nh4 {[%emt 0:00:11]} 61. Kg3 {[%emt 0:01:10]} Be2 {[%emt 0:01:21]} 0-1

[Event "7th Sharjah Challengers 2024"]
[Site "Sharjah"]
[Date "2024.05.14"]
[Round "1.7"]
[White "Lashkin, Jegor"]
[Black "Murtaza Ali"]
[Result "1-0"]
[ECO "D45"]
[WhiteElo "2449"]
[BlackElo "2158"]
[Annotator "RC"]
[PlyCount "125"]
[EventDate "2024.05.13"]
[EventType "swiss"]
[EventCountry "UAE"]
[SourceTitle "playchess.com"]
[Source "ChessBase"]
[SourceQuality "1"]
[TimeControl "5400+30"]

1. d4 {[%emt 0:00:09]} e6 {[%emt 0:00:38]} 2. c4 {[%emt 0:00:16]} d5 {[%emt 0:00:15]} 3. Nf3 {[%emt 0:00:31]} Nf6 {[%emt 0:00:22]} 4. Nc3 {[%emt 0:00:21]} c6 {[%emt 0:01:23]} 5. e3 {[%emt 0:00:20]} Nbd7 {[%emt 0:01:24]} 6. Be2 {[%emt 0:00:54]} Bd6 {[%emt 0:01:24]} 7. O-O {[%emt 0:00:58]} O-O {[%emt 0:00:33]} 8. b3 {[%emt 0:00:17]} b6 {[%emt 0:07:15]} 9. Bb2 {[%emt 0:00:12]} Bb7 {[%emt 0:00:02]} 10. Qc2 {[%emt 0:00:11]} c5 {[%emt 0:01:42]} 11. cxd5 {[%emt 0:06:53]} cxd4 {[%emt 0:01:27]} 12. Nb5 {[%emt 0:07:22]} Rc8 {[%emt 0:02:09]} 13. Qd1 {[%emt 0:02:43]} Nc5 {[%emt 0:35:42]} 14. Qxd4 {[%emt 0:25:30]} Bxd5 {[%emt 0:05:13]} 15. Nxa7 {[%emt 0:00:59]} Ra8 {[%emt 0:10:57]} 16. Nb5 {[%emt 0:00:22]} Bb8 {[%emt 0:01:48]} 17. Ne5 {[%emt 0:09:06]} Qe7 {[%emt 0:04:58]} 18. Ng4 {[%emt 0:13:16]} Ncd7 {[%emt 0:05:46]} 19. Rfc1 {[%emt 0:04:23]} Rd8 {[%emt 0:01:15]} 20. Nxf6+ {[%emt 0:03:00]} Qxf6 {[%emt 0:02:19]} 21. Qxf6 {[%emt 0:01:02]} Nxf6 {[%emt 0:00:39]} 22. Nc7 {[%emt 0:03:18]} Ra7 {[%emt 0:01:36]} 23. Nxd5 {[%emt 0:00:21]} Nxd5 {[%emt 0:00:32]} 24. a3 {[%emt 0:04:12]} Bd6 {[%emt 0:01:07]} 25. b4 {[%emt 0:01:45]} Be7 {[%emt 0:00:02]} 26. Rd1 {[%emt 0:01:56]} f5 {[%emt 0:02:19]} 27. g4 {[%emt 0:01:10]} g6 {[%emt 0:01:43]} 28. Rac1 {[%emt 0:00:55]} Kf7 {[%emt 0:00:21]} 29. gxf5 {[%emt 0:00:37]} gxf5 {[%emt 0:01:40]} 30. Bh5+ {[%emt 0:00:09]} Kf8 {[%emt 0:00:08]} 31. Rc6 {[%emt 0:00:29]} Rd6 {[%emt 0:00:41]} 32. Rxd6 {[%emt 0:01:15]} Bxd6 {[%emt 0:00:03]} 33. Bf3 {[%emt 0:00:07]} Rd7 {[%emt 0:00:43]} 34. Kg2 {[%emt 0:01:43]} Be7 {[%emt 0:01:25]} 35. Rc1 {[%emt 0:00:36]} Nxe3+ {[%emt 0:00:22]} 36. Kg1 {[%emt 0:01:24]} Nd5 {[%emt 0:00:10]} 37. Bd4 {[%emt 0:05:06]} Bf6 {[%emt 0:01:50]} 38. Bxf6 {[%emt 0:00:45]} Nxf6 {[%emt 0:00:02]} 39. Rc6 {[%emt 0:01:38]} Ke7 {[%emt 0:00:02]} 40. Kg2 {[%emt 0:01:01]} Ra7 {[%emt 0:00:29]} 41. Rxb6 {[%emt 0:00:26]} Rxa3 {[%emt 0:00:02]} 42. Rb7+ {[%emt 0:01:28]} Kd6 {[%emt 0:00:18]} 43. Rf7 {[%emt 0:00:33]} Ke5 {[%emt 0:00:03]} 44. Bc6 {[%emt 0:01:01]} Ra2 {[%emt 0:00:53]} 45. b5 {[%emt 0:00:43]} Rb2 {[%emt 0:00:21]} 46. Kg3 {[%emt 0:00:48]} f4+ {[%emt 0:02:50]} 47. Kf3 {[%emt 0:00:12]} Rb3+ {[%emt 0:00:17]} 48. Kg2 {[%emt 0:00:13]} h5 {[%emt 0:00:46]} 49. h3 {[%emt 0:00:43]} Rb2 {[%emt 0:00:59]} 50. Re7 {[%emt 0:00:24]} Kf5 {[%emt 0:01:36]} 51. Kf1 {[%emt 0:01:05]} e5 {[%emt 0:00:32]} 52. f3 {[%emt 0:00:19]} h4 {[%emt 0:00:57]} 53. Ke1 {[%emt 0:00:32]} Nh5 {[%emt 0:01:40]} 54. Bd7+ {[%emt 0:00:35]} Kf6 {[%emt 0:01:43]} 55. Re6+ {[%emt 0:00:01]} Kg7 {[%emt 0:00:23]} 56. Rxe5 {[%emt 0:00:13]} Ng3 {[%emt 0:00:27]} 57. Kd1 {[%emt 0:01:19]} Rb3 {[%emt 0:00:15]} 58. Kc2 {[%emt 0:00:21]} Rxf3 {[%emt 0:00:55]} 59. b6 {[%emt 0:00:10]} Rf2+ {[%emt 0:00:07]} 60. Kc3 {[%emt 0:00:19]} Rf1 {[%emt 0:00:30]} 61. b7 {[%emt 0:00:08]} Rb1 {[%emt 0:00:26]} 62. Rb5 {[%emt 0:00:09]} Ne4+ {[%emt 0:00:30]} 63. Kc2 {[%emt 0:00:09]} 1-0